bitfinex/quotes_SOLUSD_20240621
["timestamp","ask_amount","ask_price","bid_price","bid_amount"]
[1718963582777,6.5806,132.69,132.62,20.0]
[1718963583284,6.5806,132.69,132.61,20.0]
[1718963583661,6.5806,132.69,132.61,26.0326]
[1718963583874,6.5806,132.69,132.61,65.4]
[1718963584391,6.5806,132.69,132.63,6.0316]
[1718963584591,6.5806,132.69,132.64,26.031]
[1718963584970,6.5806,132.69,132.64,26.0311]
[1718963585398,6.5806,132.69,132.64,65.4]
[1718963585597,6.5806,132.69,132.65,51.0307]
[1718963585805,6.5806,132.69,132.66,20.0]
[1718963586089,6.5806,132.69,132.66,26.0304]
[1718963587600,16.4954,132.71,132.66,20.0]
[1718963587900,16.4954,132.71,132.68,6.0293]
[1718963588283,16.4954,132.71,132.69,20.0]
[1718963589272,6.0523,132.72,132.69,20.0]
[1718963589475,6.0523,132.72,132.68,26.0292]
[1718963589972,6.0523,132.72,132.68,20.0]
[1718963590186,6.0523,132.72,132.68,26.0294]
[1718963590395,16.1672,132.75,132.68,20.0]
[1718963590569,22.544,132.75,132.69,45.0]
[1718963590769,22.544,132.75,132.7,20.0]
[1718963591898,22.544,132.75,132.7,26.0286]
[1718963592283,22.544,132.75,132.7,20.0]
[1718963593312,22.544,132.75,132.68,20.0]
[1718963594290,22.544,132.75,132.68,26.0294]
[1718963594607,22.544,132.75,132.69,6.029]
[1718963594780,22.544,132.75,132.7,20.0]
[1718963595088,22.544,132.75,132.7,6.0283]
[1718963595509,22.544,132.75,132.71,20.0]
[1718963596700,22.544,132.75,132.7,6.0286]
[1718963597012,22.544,132.75,132.71,20.0]
[1718963597709,22.544,132.75,132.7,20.0]
[1718963598690,22.544,132.75,132.7,26.0284]
[1718963599107,22.544,132.75,132.7,20.0]
[1718963599496,22.544,132.75,132.69,20.0]
[1718963599996,22.544,132.75,132.68,20.0]
[1718963600197,22.544,132.75,132.66,20.0]
[1718963601215,22.544,132.75,132.65,26.0308]
[1718963601613,22.544,132.75,132.66,6.0303]
[1718963601789,22.544,132.75,132.67,26.0299]
[1718963601995,22.544,132.75,132.67,20.0]
[1718963602388,22.544,132.75,132.67,26.0299]
[1718963602710,22.544,132.75,132.67,65.4]
[1718963602916,22.544,132.75,132.68,45.0]
[1718963603219,22.544,132.75,132.69,20.0]
[1718963603907,22.544,132.75,132.69,26.029]
[1718963604115,22.544,132.75,132.69,20.0]
[1718963604289,0.8569535,132.78,132.73,6.0272]
[1718963604290,7.2401535,132.78,132.73,6.0272]
[1718963604497,7.2401535,132.78,132.7,90.4]
[1718963604498,7.2401535,132.78,132.74,20.0]
[1718963604998,7.2401535,132.78,132.75,6.0262]
[1718963605207,7.2401535,132.78,132.76,20.0]
[1718963605813,7.2401535,132.78,132.71,20.0]
[1718963607404,7.2401535,132.78,132.71,26.0281]
[1718963608195,7.2401535,132.78,132.71,20.0]
[1718963608401,7.2401535,132.78,132.73,6.0269]
[1718963608605,7.2401535,132.78,132.74,20.0]
[1718963609207,7.2401535,132.78,132.73,20.0]
[1718963609913,7.2401535,132.78,132.73,26.0272]
[1718963610293,7.2401535,132.78,132.74,6.0268]
[1718963610517,7.2401535,132.78,132.75,20.0]
[1718963611204,7.2401535,132.78,132.74,20.0]
[1718963611716,7.2401535,132.78,132.73,20.0]
[1718963612126,7.2401535,132.78,132.73,26.0271]
[1718963612305,7.2401535,132.78,132.74,6.0267]
[1718963612508,7.2401535,132.78,132.73,20.0]
[1718963612509,0.8569535,132.78,132.75,20.0]
[1718963612824,0.8569535,132.78,132.76,51.0257]
[1718963612996,0.8569535,132.78,132.77,20.0]
[1718963613619,0.8569535,132.78,132.76,26.0257]
[1718963614124,0.8569535,132.78,132.76,20.0]
[1718963614311,0.8569535,132.78,132.76,26.0257]
[1718963614823,6.2981,132.81,132.77,6.0254]
[1718963615016,6.2981,132.81,132.76,20.0]
[1718963615017,6.7753075,132.81,132.78,20.0]
[1718963615203,6.7753075,132.81,132.76,26.0257]
[1718963616112,6.7753075,132.81,132.76,20.0]
[1718963616429,6.7753075,132.81,132.75,26.0263]
[1718963618023,6.7753075,132.81,132.76,6.0258]
[1718963618227,6.7753075,132.81,132.77,26.0253]
[1718963618420,6.7753075,132.81,132.78,20.0]
[1718963618637,6.7753075,132.81,132.78,6.0248]
[1718963618932,6.7753075,132.81,132.79,20.0]
[1718963619308,0.4772075,132.81,132.79,20.0]
[1718963620014,0.4772075,132.81,132.78,20.0]
[1718963620536,0.4772075,132.81,132.76,45.0]
[1718963620537,0.4772075,132.81,132.77,20.0]
[1718963621239,6.5104,132.8,132.74,20.0]
[1718963621729,6.5104,132.8,132.73,20.0]
[1718963622649,6.5104,132.8,132.73,26.0271]
[1718963623329,6.5104,132.8,132.74,45.0]
[1718963623530,6.5104,132.8,132.75,20.0]
[1718963624328,6.5104,132.8,132.73,20.0]
[1718963624534,6.5104,132.8,132.73,26.0269]
[1718963625629,6.5104,132.8,132.75,6.0263]
[1718963625931,6.5104,132.8,132.76,20.0]
[1718963626621,6.5104,132.8,132.75,20.0]
[1718963628030,6.5104,132.8,132.74,20.0]
[1718963629046,6.5104,132.8,132.74,26.0267]
[1718963629229,6.5104,132.8,132.74,20.0]
[1718963629422,6.5104,132.8,132.76,6.0256]
[1718963629620,6.5104,132.8,132.77,20.0]
[1718963629841,6.9876075,132.8,132.76,6.0257]
[1718963630034,6.9876075,132.8,132.77,20.0]
[1718963630919,6.9876075,132.8,132.76,20.0]
[1718963631115,6.9876075,132.8,132.7,51.39309708]
[1718963631315,6.9876075,132.8,132.71,84.6781]
[1718963631535,6.9876075,132.8,132.71,48.65]
[1718963631738,6.9876075,132.8,132.72,6.0273]
[1718963631942,6.9876075,132.8,132.73,20.0]
[1718963632528,6.9876075,132.8,132.73,26.0271]
[1718963633817,6.9876075,132.8,132.74,6.0265]
[1718963634025,6.9876075,132.8,132.75,20.0]
[1718963634224,6.9876075,132.8,132.73,26.027]
[1718963634427,6.9876075,132.8,132.73,20.0]
[1718963634632,6.9876075,132.8,132.73,6.027]
[1718963634842,6.9876075,132.8,132.74,20.0]
[1718963635557,6.9876075,132.8,132.73,20.0]
[1718963635928,6.9876075,132.8,132.72,26.0277]
[1718963636250,6.9876075,132.8,132.72,20.0]
[1718963637140,15.636,132.79,132.72,20.0]
[1718963637828,51.5112,132.78,132.69,20.0]
[1718963638032,16.4162,132.77,132.68,28.65]
[1718963638355,16.4162,132.77,132.64,85.03900001]
[1718963638356,6.5112,132.75,132.67,6.0298]
[1718963638654,6.5112,132.75,132.67,6.0297]
[1718963638853,6.5112,132.75,132.67,45.4]
[1718963639054,6.5112,132.75,132.68,6.0292]
[1718963639437,6.5112,132.75,132.69,20.0]
[1718963639837,6.5112,132.75,132.67,51.4297]
[1718963639838,61.5722,132.74,132.68,20.0]
[1718963640039,6.5554,132.73,132.66,20.0]
[1718963640252,6.5554,132.73,132.65,26.0308]
[1718963640443,6.5554,132.73,132.65,20.0]
[1718963641153,6.5554,132.73,132.65,65.4]
[1718963641459,6.5554,132.73,132.7,6.0285]
[1718963641646,6.5554,132.73,132.69,6.0288]
[1718963641852,6.5554,132.73,132.7,20.0]
[1718963642538,6.5554,132.73,132.69,20.0]
[1718963642744,6.5554,132.73,132.68,20.0]
[1718963643245,6.5554,132.73,132.65,20.0]
[1718963644066,6.5554,132.73,132.65,26.0308]
[1718963645272,7.0326075,132.73,132.65,26.0308]
[1718963645844,7.0326075,132.73,132.65,20.0]
[1718963647842,45.0,132.72,132.64,20.0]
[1718963648463,15.987,132.71,132.64,20.0]
[1718963648848,51.3477,132.7,132.6,6.0329]
[1718963649057,15.0984,132.69,132.6,6.0329]
[1718963649573,66.4461,132.68,132.57,6.0341]
[1718963649770,66.4461,132.68,132.57,6.0343]
[1718963649953,66.4461,132.68,132.58,6.0338]
[1718963650354,21.4461,132.68,132.58,6.0338]
[1718963650678,21.4461,132.68,132.56,28.65]
[1718963650679,6.3477,132.66,132.56,6.0349]
[1718963650976,15.0984,132.67,132.54,6.0358]
[1718963650977,15.0984,132.63,132.54,6.0358]
[1718963651182,6.3477,132.62,132.51,28.65]
[1718963651472,6.3477,132.62,132.52,6.0365]
[1718963651650,6.3391,132.6,132.52,6.0365]
[1718963651975,6.3391,132.6,132.5,42.18059815]
[1718963652154,6.3391,132.6,132.5,12.18059815]
[1718963653869,6.3391,132.6,132.51,20.0]
[1718963654468,6.3391,132.6,132.52,6.0365]
[1718963654668,6.3391,132.6,132.53,20.0]
[1718963655454,6.3391,132.6,132.47,36.2566663]
[1718963655455,22.771,132.58,132.47,36.2566663]
[1718963655649,22.771,132.58,132.48,20.0]
[1718963655874,45.0,132.57,132.48,20.0]
[1718963656177,6.6308,132.56,132.48,20.0]
[1718963657377,6.6308,132.56,132.49,73.82]
[1718963657573,6.6308,132.56,132.5,20.0]
[1718963657757,6.6308,132.56,132.51,45.0]
[1718963658072,6.6308,132.56,132.52,20.0]
[1718963659579,6.6308,132.56,132.51,20.0]
[1718963659781,6.6308,132.56,132.51,26.0372]
[1718963660202,6.6308,132.56,132.51,20.0]
[1718963661268,6.6308,132.56,132.48,26.0385]
[1718963662179,6.6308,132.56,132.48,88.07]
[1718963662484,6.6308,132.56,132.53,6.036]
[1718963662687,6.6308,132.56,132.54,20.0]
[1718963663281,6.6308,132.56,132.52,20.0]
[1718963664869,6.6308,132.56,132.53,6.0362]
[1718963665063,16.6628,132.58,132.56,6.0346]
[1718963665378,16.6628,132.58,132.57,20.0]
[1718963665989,16.6628,132.58,132.56,20.0]
[1718963666866,16.6628,132.58,132.55,20.0]
[1718963667187,16.6628,132.58,132.55,6.0352]
[1718963667388,16.6628,132.58,132.56,20.0]
[1718963670068,6.0292,132.59,132.57,6.0342]
[1718963670274,6.0292,132.59,132.58,20.0]
[1718963670476,6.0292,132.59,132.58,26.034]
[1718963670979,6.0292,132.59,132.58,20.0]
[1718963671463,6.4876,132.63,132.6,6.0331]
[1718963671667,6.4876,132.63,132.61,20.0]
[1718963672898,6.4876,132.63,132.6,20.0]
[1718963673105,6.4876,132.63,132.59,71.4332]
[1718963673267,6.4876,132.63,132.59,20.0]
[1718963673464,6.4876,132.63,132.58,71.4338]
[1718963673691,6.4876,132.63,132.58,65.4]
[1718963674500,6.4876,132.63,132.58,20.0]
[1718963675288,6.4876,132.63,132.58,65.4]
[1718963675482,6.4876,132.63,132.59,45.4]
[1718963675676,6.4876,132.63,132.6,20.0]
[1718963677096,6.4876,132.63,132.6,26.0331]
[1718963677899,6.4876,132.63,132.6,20.0]
[1718963678491,6.4876,132.63,132.6,65.4]
[1718963678698,6.4876,132.63,132.6,71.433]
[1718963679197,6.4876,132.63,132.6,65.4]
[1718963680599,6.4876,132.63,132.6,20.0]
[1718963680780,6.4876,132.63,132.57,28.65]
[1718963680781,6.4876,132.63,132.58,20.0]
[1718963681190,6.4876,132.63,132.56,20.0]
[1718963681696,6.4876,132.63,132.54,34.6856]
[1718963682301,6.4876,132.63,132.54,45.4]
[1718963682498,15.044,132.64,132.5,46.6711]
[1718963682499,6.2012,132.61,132.5,45.4]
[1718963682731,6.2012,132.61,132.48,22.7023663]
[1718963682732,6.2012,132.61,132.53,45.4]
[1718963683301,6.2012,132.61,132.53,51.4362]
[1718963683490,6.2012,132.61,132.53,45.4]
[1718963683689,6.2012,132.61,132.54,6.0357]
[1718963683893,6.2012,132.61,132.53,51.4363]
[1718963684108,6.2012,132.61,132.54,20.0]
[1718963684305,6.2012,132.61,132.54,65.4]
[1718963684973,6.2012,132.61,132.54,71.4358]
[1718963685179,6.2012,132.61,132.55,45.4]
[1718963685497,6.2012,132.61,132.56,26.0346]
[1718963685697,6.2012,132.61,132.56,20.0]
[1718963686289,6.2012,132.61,132.56,71.4349]
[1718963686503,6.2012,132.61,132.57,90.4]
[1718963686707,6.2012,132.61,132.58,26.0339]
[1718963686914,15.5318,132.62,132.58,26.0339]
[1718963686915,15.5318,132.62,132.59,6.0334]
[1718963687094,22.1268,132.65,132.6,20.0]
[1718963687697,22.1268,132.65,132.59,20.0]
[1718963688521,22.1268,132.65,132.58,20.0]
[1718963689006,22.1268,132.65,132.55,20.0]
[1718963689208,68.2884,132.64,132.55,20.0]
[1718963689396,68.2884,132.64,132.53,26.0363]
[1718963689595,16.6587,132.62,132.53,20.0]
[1718963689908,16.6587,132.62,132.53,71.4362]
[1718963690293,16.6587,132.62,132.54,6.0358]
[1718963690506,16.6587,132.62,132.55,20.0]
[1718963691197,16.6587,132.62,132.54,20.0]
[1718963691396,16.6587,132.62,132.54,26.0359]
[1718963691593,16.6587,132.62,132.54,20.0]
[1718963691926,6.4425,132.61,132.54,20.0]
[1718963692901,6.4425,132.61,132.55,6.035]
[1718963693124,6.4425,132.61,132.56,20.0]
[1718963693321,6.4425,132.61,132.55,45.4]
[1718963693638,6.4425,132.61,132.56,20.0]
[1718963694726,6.4425,132.61,132.54,20.0]
[1718963695137,6.4425,132.61,132.52,20.0]
[1718963695435,6.4425,132.61,132.52,65.4]
[1718963695729,6.4425,132.61,132.52,71.4367]
[1718963696209,6.4425,132.61,132.53,6.0362]
[1718963696519,6.4425,132.61,132.54,20.0]
[1718963696899,6.4425,132.61,132.53,20.0]
[1718963697748,6.4425,132.61,132.53,65.4]
[1718963698429,6.4425,132.61,132.55,45.4]
[1718963698634,6.4425,132.61,132.54,0.17]
[1718963698635,6.4425,132.61,132.58,51.4338]
[1718963698928,16.6587,132.62,132.6,6.0329]
[1718963699131,6.6139,132.65,132.61,20.0]
[1718963699299,6.6139,132.65,132.6,51.4328]
[1718963699500,6.6139,132.65,132.61,20.0]
[1718963702313,6.6139,132.65,132.6,20.0]
[1718963702709,6.6139,132.65,132.59,20.0]
[1718963702910,6.6139,132.65,132.59,71.4333]
[1718963703110,6.6139,132.65,132.61,45.4]
[1718963703310,15.9196,132.66,132.63,6.0318]
[1718963703607,15.9196,132.66,132.64,20.0]
[1718963703807,15.9196,132.66,132.62,116.432]
[1718963705112,15.9196,132.66,132.62,20.0]
[1718963705314,15.9196,132.66,132.61,20.0]
[1718963705820,15.9196,132.66,132.59,51.4333]
[1718963706632,15.9196,132.66,132.59,45.4]
[1718963707433,15.9196,132.66,132.6,20.0]
[1718963708722,15.9196,132.66,132.58,20.0]
[1718963709823,15.9196,132.66,132.58,26.034]
[1718963710026,6.4844,132.65,132.58,20.0]
[1718963710418,6.4844,132.65,132.56,20.0]
[1718963710624,15.9938,132.64,132.54,45.4]
[1718963710824,15.9938,132.64,132.54,51.4358]
[1718963711516,15.9938,132.64,132.54,51.4357]
[1718963711823,45.0,132.63,132.55,20.0]
[1718963712039,6.3297,132.62,132.54,20.0]
[1718963712242,6.3297,132.62,132.54,65.4]
[1718963712427,6.3297,132.62,132.57,6.0344]
[1718963712752,6.3297,132.62,132.58,26.0337]
[1718963712941,15.9938,132.64,132.58,65.4]
[1718963713139,15.9938,132.64,132.61,51.4323]
[1718963713321,6.5657,132.66,132.62,26.0322]
[1718963713513,6.5657,132.66,132.62,20.0]
[1718963713919,6.5657,132.66,132.61,20.0]
[1718963715937,6.5657,132.66,132.61,65.4]
[1718963716113,6.5657,132.66,132.63,6.0317]
[1718963716450,6.5657,132.66,132.62,90.4]
[1718963716451,16.2304,132.68,132.64,65.4]
[1718963716740,16.2304,132.68,132.65,6.0306]
[1718963716947,16.2304,132.68,132.66,20.0]
[1718963717115,16.2304,132.68,132.64,65.4]
[1718963717319,16.2304,132.68,132.64,71.4312]
[1718963717620,6.6511,132.69,132.65,6.0308]
[1718963717842,6.6511,132.69,132.66,20.0]
[1718963719418,6.6511,132.69,132.65,20.0]
[1718963719920,6.6511,132.69,132.63,20.0]
[1718963720644,6.6511,132.69,132.63,26.0317]
[1718963721941,6.6511,132.69,132.63,20.0]
[1718963722138,6.6511,132.69,132.62,20.0]
[1718963722739,6.6511,132.69,132.61,26.0327]
[1718963724624,6.6511,132.69,132.61,20.0]
[1718963724826,6.6274,132.67,132.61,20.0]
[1718963725026,15.3376,132.65,132.56,65.4]
[1718963725258,15.3376,132.65,132.56,45.4]
[1718963725955,15.3376,132.65,132.56,51.4347]
[1718963728750,6.6543,132.62,132.54,51.4356]
[1718963728944,6.6543,132.62,132.55,20.0]
[1718963729145,6.6543,132.62,132.54,20.0]
[1718963729354,6.6543,132.62,132.54,65.4]
[1718963729652,6.6543,132.62,132.54,20.0]
[1718963729954,6.6543,132.62,132.53,20.0]
[1718963730656,6.6543,132.62,132.53,65.4]
[1718963731044,6.6543,132.62,132.53,71.436]
[1718963731233,6.6543,132.62,132.55,45.4]
[1718963731430,6.6543,132.62,132.57,6.0343]
[1718963731629,6.6543,132.62,132.59,6.0335]
[1718963731956,6.6543,132.62,132.6,20.0]
[1718963732531,6.6543,132.62,132.58,20.0]
[1718963735247,6.6543,132.62,132.55,20.0]
[1718963736135,6.6543,132.62,132.55,26.0354]
[1718963737934,6.6543,132.62,132.56,6.0349]
[1718963738241,6.6543,132.62,132.57,20.0]
[1718963738463,6.6543,132.62,132.55,65.4]
[1718963738651,6.6543,132.62,132.6,6.033]
[1718963738959,6.6543,132.62,132.61,20.0]
[1718963739533,6.6543,132.62,132.59,20.0]
[1718963739734,6.6543,132.62,132.59,26.0335]
[1718963740342,6.6543,132.62,132.59,20.0]
[1718963740549,6.6543,132.62,132.6,6.0331]
[1718963740845,15.1188,132.63,132.61,20.0]
[1718963741153,6.4954,132.65,132.61,26.0323]
[1718963741537,6.4954,132.65,132.61,65.4]
[1718963741742,6.4954,132.65,132.62,6.032]
[1718963742061,6.4954,132.65,132.63,20.0]
[1718963742549,6.4954,132.65,132.62,65.36]
[1718963743056,6.4954,132.65,132.62,20.0]
[1718963743357,6.4954,132.65,132.61,26.0327]
[1718963745274,6.4954,132.65,132.61,65.36]
[1718963745453,6.4954,132.65,132.62,6.032]
[1718963745754,6.4954,132.65,132.63,20.0]
[1718963746959,6.4954,132.65,132.6,20.0]
[1718963748071,6.4954,132.65,132.59,20.0]
[1718963748873,6.0025,132.63,132.53,12.06840179]
[1718963749051,6.0025,132.63,132.54,20.0]
[1718963749372,6.0025,132.63,132.54,26.0358]
[1718963749975,6.603,132.61,132.54,20.0]
[1718963750300,6.603,132.61,132.52,20.0]
[1718963751975,6.0665,132.59,132.52,20.0]
[1718963752672,6.0665,132.59,132.51,20.0]
[1718963752875,6.0665,132.59,132.5,20.0]
[1718963754164,6.0665,132.59,132.5,26.0375]
[1718963755377,6.0665,132.59,132.5,65.36]
[1718963755677,6.0665,132.59,132.52,6.0366]
[1718963755977,6.0665,132.59,132.53,20.0]
[1718963756364,6.0665,132.59,132.52,26.0367]
[1718963756763,6.0665,132.59,132.52,20.0]
[1718963758372,16.5655,132.57,132.5,20.0]
[1718963758681,16.5655,132.57,132.48,40.70380873]
[1718963758682,16.5655,132.57,132.49,26.038]
[1718963758852,16.5655,132.57,132.49,20.0]
[1718963759058,16.5655,132.57,132.49,26.038]
[1718963759373,16.5655,132.57,132.49,20.0]
[1718963759573,6.5148,132.56,132.49,20.0]
[1718963760564,6.5148,132.56,132.49,74.11]
[1718963760772,6.5148,132.56,132.53,6.0362]
[1718963761074,6.5148,132.56,132.54,20.0]
[1718963761686,6.5148,132.56,132.53,20.0]
[1718963762796,6.5148,132.56,132.51,20.0]
[1718963762980,6.5148,132.56,132.5,20.0]
[1718963763596,6.5148,132.56,132.51,51.3968]
[1718963763903,16.5655,132.57,132.53,6.0361]
[1718963764504,16.5655,132.57,132.54,20.0]
[1718963765905,16.5655,132.57,132.52,20.0]
[1718963766876,16.5655,132.57,132.52,65.36]
[1718963767107,6.371,132.59,132.53,90.36]
[1718963767282,6.371,132.59,132.54,26.0358]
[1718963767476,6.371,132.59,132.54,20.0]
[1718963767677,6.371,132.59,132.55,45.36]
[1718963767882,6.371,132.59,132.56,20.0]
[1718963768089,6.371,132.59,132.56,26.0349]
[1718963768715,15.6806,132.62,132.58,45.36]
[1718963769003,15.6806,132.62,132.59,20.0]
[1718963769377,15.6806,132.62,132.57,20.0]
[1718963770309,15.6806,132.62,132.55,26.0352]
[1718963770601,15.6806,132.62,132.56,45.0]
[1718963770909,15.6806,132.62,132.57,20.0]
[1718963771390,15.6806,132.62,132.53,65.36]
[1718963771596,15.6806,132.62,132.54,45.36]
[1718963771779,15.6806,132.62,132.55,20.0]
[1718963773278,15.6806,132.62,132.54,20.0]
[1718963773484,15.0335,132.6,132.54,20.0]
[1718963773682,15.0335,132.6,132.51,20.0]
[1718963773878,6.0316,132.59,132.51,20.0]
[1718963775193,6.0316,132.59,132.51,26.0372]
[1718963775393,6.0316,132.59,132.51,20.0]
[1718963775712,6.0316,132.59,132.51,6.037]
[1718963776012,6.0316,132.59,132.52,20.0]
[1718963776502,6.0316,132.59,132.51,20.0]
[1718963777107,6.0316,132.59,132.48,15.0955]
[1718963777108,6.0316,132.59,132.48,6.15875643]
[1718963777304,6.0316,132.59,132.48,15.0962]
[1718963777605,6.0316,132.59,132.52,6.0365]
[1718963777787,6.0316,132.59,132.49,45.36]
[1718963778308,6.0316,132.59,132.51,6.0369]
[1718963778509,6.0316,132.59,132.52,71.3967]
[1718963778816,6.0316,132.59,132.52,45.36]
[1718963778997,6.0316,132.59,132.54,6.0356]
[1718963779306,6.0316,132.59,132.55,20.0]
[1718963780011,6.0316,132.59,132.54,20.0]
[1718963783206,6.0316,132.59,132.51,20.0]
[1718963783392,6.0316,132.59,132.51,26.037]
[1718963784285,6.0316,132.59,132.51,20.0]
[1718963785901,6.0316,132.59,132.52,6.0365]
[1718963786102,6.0316,132.59,132.53,20.0]
[1718963786706,6.0316,132.59,132.52,20.0]
[1718963786895,6.0316,132.59,132.51,20.0]
[1718963787895,6.0316,132.59,132.52,6.0366]
[1718963788096,6.0316,132.59,132.53,20.0]
[1718963788613,6.0316,132.59,132.53,26.036]
[1718963788912,6.0316,132.59,132.53,20.0]
[1718963790194,15.2685,132.58,132.53,20.0]
[1718963790405,6.0068,132.57,132.5,20.0]
[1718963790605,15.2685,132.56,132.49,20.0]
[1718963790807,15.2685,132.56,132.48,20.0]
[1718963791010,15.2685,132.56,132.46,6.0393]
[1718963791308,15.2685,132.56,132.46,51.3993]
[1718963791509,15.2685,132.56,132.47,6.0389]
[1718963791915,6.6561,132.55,132.46,57.416047]
[1718963792324,6.6561,132.55,132.47,20.0]
[1718963792900,6.6561,132.55,132.47,26.039]
[1718963793420,6.6561,132.55,132.47,20.0]
[1718963793802,67.0098,132.54,132.47,20.0]
[1718963794002,22.0098,132.54,132.43,80.1509]
[1718963794213,22.0098,132.54,132.43,74.11]
[1718963794399,22.0098,132.54,132.43,80.1505]
[1718963795296,22.0098,132.54,132.44,20.0]
[1718963795927,45.0,132.53,132.44,20.0]
[1718963796697,6.6364,132.5,132.44,20.0]
[1718963797131,6.6364,132.5,132.41,20.0]
[1718963797497,15.8285,132.49,132.41,20.0]
[1718963797693,15.8285,132.49,132.39,71.7828906]
[1718963798005,15.8285,132.49,132.4,51.4022]
[1718963798322,15.8285,132.49,132.41,20.0]
[1718963798524,15.8285,132.49,132.41,71.4014]
[1718963798726,15.8285,132.49,132.41,65.36]
[1718963799299,15.8285,132.49,132.41,20.0]
[1718963801000,6.1676,132.48,132.41,20.0]
[1718963801195,6.1676,132.48,132.4,20.0]
[1718963801423,16.0716,132.47,132.39,20.3804906]
[1718963802422,6.1676,132.46,132.39,20.3804906]
[1718963802723,128.75,132.52,132.39,0.3804906]
[1718963802724,6.1676,132.44,132.39,0.3804906]
[1718963803302,60.7938,132.43,132.39,0.3804906]
[1718963803497,60.7938,132.43,132.33,35.597519]
[1718963803498,6.3238,132.42,132.33,35.597519]
[1718963803708,6.3238,132.42,132.32,6.0457]
[1718963804633,6.3238,132.42,132.31,6.0462]
[1718963805001,15.7938,132.41,132.31,6.0462]
[1718963805204,6.2869,132.4,132.32,20.0]
[1718963805404,51.2869,132.4,132.31,28.75]
[1718963805729,6.2869,132.4,132.31,28.75]
[1718963806236,6.2869,132.4,132.31,34.7962]
[1718963806425,6.2869,132.4,132.32,6.0458]
[1718963806730,6.2869,132.4,132.31,34.7963]
[1718963806906,6.2869,132.4,132.32,20.0]
[1718963808212,6.2869,132.4,132.33,6.0452]
[1718963808509,6.2869,132.4,132.34,20.0]
[1718963808935,6.2869,132.4,132.33,6.0451]
[1718963809228,6.2869,132.4,132.34,20.0]
[1718963809637,6.2869,132.4,132.35,6.0444]
[1718963809803,6.0147,132.43,132.37,28.75]
[1718963810010,6.0147,132.43,132.38,20.0]
[1718963810204,6.0147,132.43,132.4,6.042]
[1718963810428,6.0147,132.43,132.41,20.0]
[1718963811006,6.0147,132.43,132.38,20.0]
[1718963816738,6.0147,132.43,132.36,26.044]
[1718963817941,6.0147,132.43,132.36,65.36]
[1718963818143,6.0147,132.43,132.38,6.0427]
[1718963818334,6.0147,132.43,132.39,26.0427]
[1718963818634,6.5993,132.47,132.4,74.28]
[1718963818821,6.5993,132.47,132.42,45.36]
[1718963819025,6.5993,132.47,132.44,6.0402]
[1718963819223,6.5993,132.47,132.45,20.0]
[1718963819832,6.5993,132.47,132.41,96.4016]
[1718963819833,6.5993,132.47,132.42,20.0]
[1718963822119,6.5993,132.47,132.41,20.0]
[1718963822528,6.5993,132.47,132.39,6.0423]
[1718963822742,6.5993,132.47,132.4,26.042]